[Event "UZB-ch Men Final 2019"]
[Site "Tashkent"]
[Date "2019.07.12"]
[Round "11.1"]
[White "Vokhidov, Shamsiddin"]
[Black "Nigmatov, Ortik"]
[Result "0-1"]
[ECO "E73"]
[WhiteElo "2515"]
[BlackElo "2488"]
[Annotator "ChessBase"]
[PlyCount "100"]
[EventDate "2019.07.02"]
[EventType "tourn"]
[EventCountry "UZB"]
[SourceTitle "playchess.com"]
[Source "ChessBase"]
[SourceQuality "1"]
[TimeControl "5400+30"]

1. d4 {[%emt 0:00:00]} Nf6 {[%emt 0:00:00]} 2. c4 {[%emt 0:00:00]} g6 {[%emt 0:01:54]} 3. Nc3 {[%emt 0:00:00]} Bg7 {[%emt 0:00:03]} 4. e4 {[%emt 0:00:00]} d6 {[%emt 0:00:04]} 5. Be2 {[%emt 0:00:00]} O-O {[%emt 0:00:14]} 6. Bg5 {[%emt 0:00:00]} c5 {[%emt 0:01:15]} 7. d5 {[%emt 0:00:05]} h6 {[%emt 0:00:06]} 8. Bf4 {[%emt 0:00:05]} e6 {[%emt 0:08:10]} 9. dxe6 {[%emt 0:00:16]} Bxe6 {[%emt 0:00:08]} 10. Bxd6 {[%emt 0:00:05]} Re8 {[%emt 0:03:36]} 11. e5 {[%emt 0:00:15]} Nfd7 {[%emt 0:02:18]} 12. f4 {[%emt 0:00:38]} g5 {[%emt 0:17:35]} 13. Qb3 {[%emt 0:07:59]} Nc6 {[%emt 0:08:12]} 14. Qxb7 {[%emt 0:10:18]} Nd4 {[%emt 0:00:12]} 15. O-O-O {[%emt 0:00:48]} Qa5 {[%emt 0:14:22]} 16. Bc7 {[%emt 0:31:16]} Nb6 {[%emt 0:00:14]} 17. Bd3 {[%emt 0:02:09]} Qb4 {[%emt 0:06:45]} 18. Bd6 {[%emt 0:05:50]} Rad8 {[%emt 0:09:42]} 19. Qe4 {[%emt 0:11:06]} Rxd6 {[%emt 0:01:08]} 20. exd6 {[%emt 0:00:29]} Bd7 {[%emt 0:05:46]} 21. Qh7+ {[%emt 0:08:22]} Kf8 {[%emt 0:00:00]} 22. Nf3 {[%emt 0:03:17]} Nxc4 {[%emt 0:12:52]} 23. Bxc4 {[%emt 0:01:16]} Bf5 {[%emt 0:00:25]} 24. Nxd4 {[%emt 0:04:22]} Bxh7 {[%emt 0:00:10]} 25. Nc6 {[%emt 0:00:11]} Qxc4 {[%emt 0:01:36]} 26. d7 {[%emt 0:00:19]} Bxc3 {[%emt 0:04:10]} 27. dxe8=Q+ {[%emt 0:00:10]} Kg7 {[%emt 0:00:06]} 28. Rd2 {[%emt 0:02:32]} Bxd2+ {[%emt 0:02:20]} 29. Kxd2 {[%emt 0:00:01]} Qc2+ {[%emt 0:00:32]} 30. Ke3 {[%emt 0:00:32]} Qd3+ {[%emt 0:00:33]} 31. Kf2 {[%emt 0:00:01]} Qd2+ {[%emt 0:00:15]} 32. Qe2 {[%emt 0:00:06]} Qxf4+ {[%emt 0:00:04]} 33. Qf3 {[%emt 0:01:17]} Qd2+ {[%emt 0:00:01]} 34. Kg3 {[%emt 0:00:10]} Qd6+ {[%emt 0:00:01]} 35. Kh3 {[%emt 0:00:40]} h5 {[%emt 0:01:18]} 36. Ne5 {[%emt 0:01:49]} Qxe5 {[%emt 0:00:19]} 37. g4 {[%emt 0:02:47]} hxg4+ {[%emt 0:00:32]} 38. Kxg4 {[%emt 0:00:16]} Be4 {[%emt 0:00:28]} 39. Qf1 {[%emt 0:00:42]} Bxh1 {[%emt 0:01:04]} 40. Qxh1 {[%emt 0:00:13]} Qf4+ {[%emt 0:00:02]} 41. Kh3 {[%emt 0:00:05]} Qh4+ {[%emt 0:00:20]} 42. Kg2 {[%emt 0:00:04]} Qe4+ {[%emt 0:00:04]} 43. Kg1 {[%emt 0:00:03]} Qb1+ {[%emt 0:00:04]} 44. Kg2 {[%emt 0:00:04]} Qxb2+ {[%emt 0:00:11]} 45. Kg3 {[%emt 0:00:09]} Qe5+ {[%emt 0:00:04]} 46. Kf2 {[%emt 0:00:05]} Qd4+ {[%emt 0:00:09]} 47. Ke2 {[%emt 0:00:26]} Qb2+ {[%emt 0:00:13]} 48. Kd3 {[%emt 0:00:33]} Qxa2 {[%emt 0:00:06]} 49. Qc6 {[%emt 0:00:14]} Qb3+ {[%emt 0:00:10]} 50. Ke4 {[%emt 0:00:07]} Qe6+ 0-1

[Event "UZB-ch Men Final 2019"]
[Site "Tashkent"]
[Date "2019.07.12"]
[Round "11.2"]
[White "Abdusattorov, Nodirbek"]
[Black "Khoroshev, Nikita"]
[Result "1-0"]
[ECO "C41"]
[WhiteElo "2598"]
[BlackElo "2414"]
[Annotator "ChessBase"]
[PlyCount "65"]
[EventDate "2019.07.02"]
[EventType "tourn"]
[EventCountry "UZB"]
[SourceTitle "playchess.com"]
[Source "ChessBase"]
[SourceQuality "1"]
[TimeControl "5400+30"]

1. e4 {[%emt 0:00:00]} d6 {[%emt 0:00:00]} 2. d4 {[%emt 0:00:00]} Nf6 {[%emt 0:00:00]} 3. Nc3 {[%emt 0:00:23]} e5 {[%emt 0:00:00]} 4. Nf3 {[%emt 0:00:23]} Nbd7 {[%emt 0:00:00]} 5. Bc4 {[%emt 0:00:18]} Be7 {[%emt 0:00:03]} 6. O-O {[%emt 0:00:15]} O-O {[%emt 0:00:04]} 7. Re1 {[%emt 0:00:25]} c6 {[%emt 0:00:04]} 8. a4 {[%emt 0:00:21]} a5 {[%emt 0:00:06]} 9. h3 {[%emt 0:04:19]} Nb6 {[%emt 0:00:07]} 10. Bd3 {[%emt 0:03:17]} Nfd7 {[%emt 0:01:51]} 11. Ne2 {[%emt 0:03:15]} exd4 {[%emt 0:00:22]} 12. Nexd4 {[%emt 0:03:21]} Nc5 {[%emt 0:00:28]} 13. b3 {[%emt 0:06:06]} Bf6 {[%emt 0:00:12]} 14. Rb1 {[%emt 0:01:23]} Re8 {[%emt 0:00:44]} 15. Ba3 {[%emt 0:03:57]} Nbd7 {[%emt 0:00:48]} 16. Nf5 {[%emt 0:15:58]} Ne5 {[%emt 0:00:34]} 17. Nxe5 {[%emt 0:02:06]} Bxe5 {[%emt 0:00:36]} 18. Qf3 {[%emt 0:04:24]} Qf6 {[%emt 0:02:12]} 19. Re2 {[%emt 0:08:01]} h5 {[%emt 0:02:25]} 20. Bxc5 {[%emt 0:02:07]} dxc5 {[%emt 0:00:18]} 21. Bc4 {[%emt 0:00:09]} Bxf5 {[%emt 0:07:34]} 22. exf5 {[%emt 0:00:19]} h4 {[%emt 0:00:12]} 23. Rbe1 {[%emt 0:01:23]} Re7 {[%emt 0:00:13]} 24. Qh5 {[%emt 0:01:11]} Rae8 {[%emt 0:00:24]} 25. Kf1 {[%emt 0:00:47]} Bd4 {[%emt 0:02:01]} 26. c3 {[%emt 0:19:46]} Bxc3 {[%emt 0:03:55]} 27. Re6 {[%emt 0:07:29]} fxe6 {[%emt 0:02:22]} 28. Rxe6 {[%emt 0:00:50]} Rxe6 {[%emt 0:00:23]} 29. Qxe8+ {[%emt 0:00:25]} Kh7 {[%emt 0:00:47]} 30. fxe6 {[%emt 0:00:48]} Qf5 {[%emt 0:01:19]} 31. Kg1 {[%emt 0:00:28]} Qb1+ {[%emt 0:05:18]} 32. Bf1 {[%emt 0:00:05]} Qg6 {[%emt 0:00:04]} 33. Bd3 {[%emt 0:00:39]} 1-0

[Event "UZB-ch Men Final 2019"]
[Site "Tashkent"]
[Date "2019.07.12"]
[Round "11.3"]
[White "Sabirov, Asilbek"]
[Black "Sindarov, Javokhir"]
[Result "1/2-1/2"]
[ECO "A40"]
[WhiteElo "2147"]
[BlackElo "2479"]
[Annotator "ChessBase"]
[PlyCount "98"]
[EventDate "2019.07.02"]
[EventType "tourn"]
[EventCountry "UZB"]
[SourceTitle "playchess.com"]
[Source "ChessBase"]
[SourceQuality "1"]
[TimeControl "5400+30"]

1. d4 {[%emt 0:00:00]} e6 {[%emt 0:00:00]} 2. Nf3 {[%emt 0:00:00]} c5 {[%emt 0:00:00]} 3. e3 {[%emt 0:05:01]} Nc6 {[%emt 0:00:10]} 4. Be2 {[%emt 0:00:25]} Nf6 {[%emt 0:01:10]} 5. O-O {[%emt 0:00:06]} Be7 {[%emt 0:02:01]} 6. b3 {[%emt 0:00:09]} b6 {[%emt 0:01:38]} 7. Bb2 {[%emt 0:00:34]} Bb7 {[%emt 0:01:50]} 8. c4 {[%emt 0:01:04]} cxd4 {[%emt 0:14:21]} 9. Nxd4 {[%emt 0:01:54]} Nxd4 {[%emt 0:00:35]} 10. Bxd4 {[%emt 0:00:50]} Qb8 {[%emt 0:07:02]} 11. Bf3 {[%emt 0:08:47]} Bxf3 {[%emt 0:00:25]} 12. Qxf3 {[%emt 0:00:31]} O-O {[%emt 0:00:06]} 13. Nd2 {[%emt 0:00:31]} d5 {[%emt 0:11:21]} 14. Rad1 {[%emt 0:07:30]} Rd8 {[%emt 0:02:17]} 15. Bxf6 {[%emt 0:06:58]} Bxf6 {[%emt 0:00:15]} 16. cxd5 {[%emt 0:00:19]} exd5 {[%emt 0:00:09]} 17. e4 {[%emt 0:03:24]} d4 {[%emt 0:04:45]} 18. Qf5 {[%emt 0:00:52]} d3 {[%emt 0:13:38]} 19. Nc4 {[%emt 0:03:43]} Bd4 {[%emt 0:20:32]} 20. Qf3 {[%emt 0:32:24]} b5 {[%emt 0:00:50]} 21. Ne3 {[%emt 0:00:04]} Bxe3 {[%emt 0:00:45]} 22. Qxe3 {[%emt 0:00:04]} Qd6 {[%emt 0:00:03]} 23. Rd2 {[%emt 0:00:13]} Rac8 {[%emt 0:00:48]} 24. Rfd1 {[%emt 0:00:33]} Rc3 {[%emt 0:00:23]} 25. Qxa7 {[%emt 0:02:12]} b4 {[%emt 0:00:07]} 26. Qe3 {[%emt 0:00:37]} h6 {[%emt 0:00:14]} 27. h3 {[%emt 0:00:21]} Qc7 {[%emt 0:01:40]} 28. g3 {[%emt 0:00:59]} Rc1 {[%emt 0:01:27]} 29. Rxc1 {[%emt 0:00:15]} Qxc1+ {[%emt 0:00:06]} 30. Kg2 {[%emt 0:00:03]} Qc3 {[%emt 0:00:05]} 31. h4 {[%emt 0:02:27]} Rd4 {[%emt 0:00:38]} 32. Kh2 {[%emt 0:02:12]} Kh8 {[%emt 0:00:41]} 33. Kg2 {[%emt 0:01:12]} Rd8 {[%emt 0:00:56]} 34. h5 {[%emt 0:00:41]} Kg8 {[%emt 0:00:28]} 35. Kh2 {[%emt 0:03:08]} Qf6 {[%emt 0:00:35]} 36. Kg2 {[%emt 0:00:59]} Qd6 {[%emt 0:01:55]} 37. Kh2 {[%emt 0:00:35]} Qd7 {[%emt 0:02:15]} 38. Kg2 {[%emt 0:01:13]} Qb5 {[%emt 0:00:43]} 39. Qf3 {[%emt 0:02:30]} Rd4 {[%emt 0:01:29]} 40. Qe3 {[%emt 0:01:13]} Qd7 {[%emt 0:00:11]} 41. Kg1 {[%emt 0:03:43]} Rd6 {[%emt 0:01:10]} 42. Kg2 {[%emt 0:00:07]} Qb5 {[%emt 0:01:05]} 43. Qf3 {[%emt 0:00:19]} Rd4 {[%emt 0:03:15]} 44. Qe3 {[%emt 0:00:05]} Qd7 {[%emt 0:00:12]} 45. Kg1 {[%emt 0:00:07]} Kh8 {[%emt 0:00:31]} 46. Kg2 {[%emt 0:00:11]} Kh7 {[%emt 0:00:17]} 47. Qf3 {[%emt 0:00:44]} Kg8 {[%emt 0:00:19]} 48. Qe3 {[%emt 0:01:24]} Qd6 {[%emt 0:01:17]} 49. Qf3 {[%emt 0:00:44]} Qd8 {[%emt 0:00:26]} 1/2-1/2

[Event "UZB-ch Men Final 2019"]
[Site "Tashkent"]
[Date "2019.07.12"]
[Round "11.5"]
[White "Abdisalimov, Abdimalik"]
[Black "Karimov, Ibragim"]
[Result "1-0"]
[ECO "A41"]
[WhiteElo "2391"]
[BlackElo "2211"]
[Annotator "NA"]
[PlyCount "79"]
[EventDate "2019.07.02"]
[EventType "tourn"]
[EventCountry "UZB"]
[SourceTitle "playchess.com"]
[Source "ChessBase"]
[SourceQuality "1"]
[TimeControl "5400+30"]

1. d4 {[%emt 0:00:00]} d6 {[%emt 0:00:11]} 2. e4 {[%emt 0:01:17]} Nf6 {[%emt 0:01:51]} 3. f3 {[%emt 0:00:10]} e5 {[%emt 0:04:05]} 4. d5 {[%emt 0:00:27]} c6 {[%emt 0:04:31]} 5. c4 {[%emt 0:00:20]} cxd5 {[%emt 0:00:05]} 6. cxd5 {[%emt 0:00:03]} Be7 {[%emt 0:00:05]} 7. Be3 {[%emt 0:00:08]} O-O {[%emt 0:00:10]} 8. Qd2 {[%emt 0:00:05]} Nh5 {[%emt 0:19:10]} 9. Nc3 {[%emt 0:02:46]} h6 {[%emt 0:03:29]} 10. Nge2 {[%emt 0:04:52]} a6 {[%emt 0:11:51]} 11. Ng3 {[%emt 0:07:32]} Nf6 {[%emt 0:13:05]} 12. Na4 {[%emt 0:01:02]} Nbd7 {[%emt 0:07:10]} 13. Nf5 {[%emt 0:00:16]} b5 {[%emt 0:02:04]} 14. Nc3 {[%emt 0:00:16]} Ne8 {[%emt 0:12:31]} 15. h4 {[%emt 0:00:44]} Nc5 {[%emt 0:02:30]} 16. Nxe7+ {[%emt 0:00:33]} Qxe7 {[%emt 0:00:02]} 17. g4 {[%emt 0:00:09]} Nf6 {[%emt 0:06:59]} 18. Ne2 {[%emt 0:18:02]} Nh7 {[%emt 0:05:32]} 19. Rc1 {[%emt 0:01:34]} Bd7 {[%emt 0:00:29]} 20. Ng3 {[%emt 0:00:20]} f6 {[%emt 0:00:55]} 21. Be2 {[%emt 0:04:50]} Rfc8 {[%emt 0:00:26]} 22. Kf2 {[%emt 0:00:01]} Kh8 {[%emt 0:00:29]} 23. Rc2 {[%emt 0:00:35]} Na4 {[%emt 0:00:28]} 24. Rhc1 {[%emt 0:00:35]} Rxc2 {[%emt 0:00:18]} 25. Rxc2 {[%emt 0:00:19]} f5 {[%emt 0:02:47]} 26. exf5 {[%emt 0:00:07]} Qxh4 {[%emt 0:00:07]} 27. Kg2 {[%emt 0:00:02]} h5 {[%emt 0:01:25]} 28. Nxh5 {[%emt 0:01:37]} Bxf5 {[%emt 0:00:31]} 29. Bf2 {[%emt 0:00:09]} Qe7 {[%emt 0:00:20]} 30. gxf5 {[%emt 0:00:02]} e4 {[%emt 0:00:13]} 31. Ng3 {[%emt 0:00:06]} exf3+ {[%emt 0:00:16]} 32. Bxf3 {[%emt 0:00:01]} Ng5 {[%emt 0:00:45]} 33. Qf4 {[%emt 0:00:19]} Nxf3 {[%emt 0:00:36]} 34. Qxf3 {[%emt 0:00:06]} Rf8 {[%emt 0:00:18]} 35. Qe4 {[%emt 0:01:09]} Qg5 {[%emt 0:00:15]} 36. b3 {[%emt 0:00:29]} Nc5 {[%emt 0:00:04]} 37. Bxc5 {[%emt 0:00:07]} dxc5 {[%emt 0:00:01]} 38. Rxc5 {[%emt 0:00:11]} Rf6 {[%emt 0:00:17]} 39. Qe8+ {[%emt 0:00:25]} Kh7 {[%emt 0:00:07]} 40. Qh5+ {[%emt 0:00:03]} 1-0

[Event "UZB-ch Men Final 2019"]
[Site "Tashkent"]
[Date "2019.07.12"]
[Round "11.6"]
[White "Rakhimov, Rakhmatjon"]
[Black "Saydaliev, Saidakbar"]
[Result "1-0"]
[ECO "E00"]
[WhiteElo "2107"]
[BlackElo "2384"]
[Annotator "NA"]
[PlyCount "26"]
[EventDate "2019.07.02"]
[EventType "tourn"]
[EventCountry "UZB"]
[SourceTitle "playchess.com"]
[Source "ChessBase"]
[SourceQuality "1"]
[TimeControl "5400+30"]

1. d4 {[%emt 0:00:00]} Nf6 {[%emt 0:00:00]} 2. c4 {[%emt 0:00:00]} e6 {[%emt 0:03:02]} 3. Bf4 {[%emt 0:01:24]} c5 {[%emt 0:05:13]} 4. d5 {[%emt 0:02:50]} exd5 {[%emt 0:01:24]} 5. cxd5 {[%emt 0:00:03]} d6 {[%emt 0:00:12]} 6. Nc3 {[%emt 0:00:38]} g6 {[%emt 0:00:08]} 7. h3 {[%emt 0:00:23]} Bg7 {[%emt 0:01:14]} 8. e4 {[%emt 0:05:07]} O-O {[%emt 0:00:35]} 9. Bd3 {[%emt 0:00:42]} b5 {[%emt 0:30:28]} 10. Nxb5 {[%emt 0:12:36]} Nxe4 {[%emt 0:00:47]} 11. Ne2 {[%emt 0:00:26]} a6 {[%emt 0:09:59]} 12. Nbc3 {[%emt 0:03:11]} Nxc3 {[%emt 0:00:16]} 13. bxc3 {[%emt 0:00:53]} Qc7 {[%emt 0:00:05]} 1-0

[Event "UZB-ch Men Final 2019"]
[Site "Tashkent"]
[Date "2019.07.13"]
[Round "12.1"]
[White "Karimov, Ibragim"]
[Black "Rakhimov, Rakhmatjon"]
[Result "0-1"]
[ECO "B56"]
[WhiteElo "2211"]
[BlackElo "2107"]
[Annotator "ChessBase"]
[PlyCount "64"]
[EventDate "2019.07.02"]
[EventType "tourn"]
[EventCountry "UZB"]
[SourceTitle "playchess.com"]
[Source "ChessBase"]
[SourceQuality "1"]
[TimeControl "5400+30"]

1. e4 {[%emt 0:00:00]} c5 {[%emt 0:00:00]} 2. Nf3 {[%emt 0:00:00]} d6 {[%emt 0:00:35]} 3. d4 {[%emt 0:03:08]} Nf6 {[%emt 0:00:58]} 4. Nc3 {[%emt 0:13:59]} cxd4 {[%emt 0:00:51]} 5. Nxd4 {[%emt 0:00:05]} e5 {[%emt 0:01:36]} 6. Nb3 {[%emt 0:08:27]} Be6 {[%emt 0:00:49]} 7. Be2 {[%emt 0:00:49]} Nc6 {[%emt 0:04:00]} 8. O-O {[%emt 0:01:19]} Be7 {[%emt 0:05:35]} 9. f4 {[%emt 0:08:14]} exf4 {[%emt 0:12:21]} 10. Bxf4 {[%emt 0:00:09]} O-O {[%emt 0:02:46]} 11. Qe1 {[%emt 0:08:32]} d5 {[%emt 0:12:23]} 12. exd5 {[%emt 0:06:07]} Nxd5 {[%emt 0:00:36]} 13. Nxd5 {[%emt 0:00:09]} Bxd5 {[%emt 0:01:38]} 14. Rd1 {[%emt 0:04:29]} Qb6+ {[%emt 0:06:35]} 15. Kh1 {[%emt 0:00:17]} Be4 {[%emt 0:02:27]} 16. Bd3 {[%emt 0:03:47]} Bxd3 {[%emt 0:00:38]} 17. Rxd3 {[%emt 0:00:02]} Bf6 {[%emt 0:02:03]} 18. Qg3 {[%emt 0:02:33]} Bxb2 {[%emt 0:10:45]} 19. c3 {[%emt 0:02:33]} Qb5 {[%emt 0:00:14]} 20. Bd6 {[%emt 0:11:46]} Rfe8 {[%emt 0:04:23]} 21. Rdf3 {[%emt 0:10:41]} Re3 {[%emt 0:01:28]} 22. Qf4 {[%emt 0:04:55]} Rxf3 {[%emt 0:00:14]} 23. Rxf3 {[%emt 0:00:36]} Qd5 {[%emt 0:03:42]} 24. h3 {[%emt 0:03:17]} Re8 {[%emt 0:01:04]} 25. Kh2 {[%emt 0:02:34]} Re2 {[%emt 0:02:07]} 26. Bb4 {[%emt 0:01:21]} g5 {[%emt 0:03:40]} 27. Qg4 {[%emt 0:01:13]} Nxb4 {[%emt 0:00:40]} 28. Nd4 {[%emt 0:01:02]} Qe5+ {[%emt 0:07:34]} 29. Rg3 {[%emt 0:00:13]} Rf2 {[%emt 0:02:33]} 30. Nf3 {[%emt 0:00:44]} Rxf3 {[%emt 0:00:46]} 31. Qxf3 {[%emt 0:01:10]} Nd5 {[%emt 0:00:55]} 32. c4 {[%emt 0:00:45]} Nf6 {[%emt 0:00:37]} 0-1

[Event "UZB-ch Men Final 2019"]
[Site "Tashkent"]
[Date "2019.07.13"]
[Round "12.6"]
[White "Yakubboev, Nodirbek"]
[Black "Vokhidov, Shamsiddin"]
[Result "*"]
[ECO "D45"]
[WhiteElo "2575"]
[BlackElo "2515"]
[Annotator "RC"]
[PlyCount "97"]
[EventDate "2019.07.02"]
[EventType "tourn"]
[EventCountry "UZB"]
[SourceTitle "playchess.com"]
[Source "ChessBase"]
[SourceQuality "1"]
[TimeControl "5400+30"]

1. d4 {[%emt 0:00:00]} Nf6 {[%emt 0:00:22]} 2. c4 {[%emt 0:00:09]} e6 {[%emt 0:00:07]} 3. Nf3 {[%emt 0:00:15]} d5 {[%emt 0:00:15]} 4. Nc3 {[%emt 0:01:44]} c6 {[%emt 0:02:34]} 5. e3 {[%emt 0:11:20]} Nbd7 {[%emt 0:00:10]} 6. Qc2 {[%emt 0:04:19]} Bd6 {[%emt 0:00:21]} 7. Bd2 {[%emt 0:02:20]} O-O {[%emt 0:07:34]} 8. h3 {[%emt 0:10:39]} Re8 {[%emt 0:00:30]} 9. O-O-O {[%emt 0:00:30]} e5 {[%emt 0:28:22]} 10. cxd5 {[%emt 0:25:08]} cxd5 {[%emt 0:02:09]} 11. Nb5 {[%emt 0:00:25]} Bb8 {[%emt 0:00:25]} 12. dxe5 {[%emt 0:02:41]} Nxe5 {[%emt 0:02:03]} 13. Bc3 {[%emt 0:09:29]} Bd7 {[%emt 0:10:17]} 14. Kb1 {[%emt 0:00:53]} a6 {[%emt 0:01:56]} 15. Bxe5 {[%emt 0:02:34]} Bxe5 {[%emt 0:01:13]} 16. Nxe5 {[%emt 0:00:45]} Rxe5 {[%emt 0:08:18]} 17. Nc3 {[%emt 0:00:53]} b5 {[%emt 0:00:51]} 18. Bd3 {[%emt 0:04:00]} b4 {[%emt 0:02:12]} 19. Ne2 {[%emt 0:00:19]} Rc8 {[%emt 0:00:55]} 20. Qd2 {[%emt 0:00:20]} Qb6 {[%emt 0:00:09]} 21. Rc1 {[%emt 0:00:50]} Ree8 {[%emt 0:00:21]} 22. Rxc8 {[%emt 0:03:23]} Rxc8 {[%emt 0:00:18]} 23. f3 {[%emt 0:01:58]} Re8 {[%emt 0:05:34]} 24. Nd4 {[%emt 0:00:02]} a5 {[%emt 0:01:32]} 25. g4 {[%emt 0:00:45]} Bc8 {[%emt 0:01:13]} 26. Rc1 {[%emt 0:00:56]} Bb7 {[%emt 0:00:57]} 27. Bb5 {[%emt 0:01:08]} Rc8 {[%emt 0:01:17]} 28. Qh2 {[%emt 0:04:50]} h6 {[%emt 0:03:01]} 29. h4 {[%emt 0:02:50]} Rxc1+ {[%emt 0:02:01]} 30. Kxc1 {[%emt 0:00:01]} Ba6 {[%emt 0:00:18]} 31. Ba4 {[%emt 0:05:36]} Bc4 {[%emt 0:03:59]} 32. g5 {[%emt 0:00:50]} hxg5 {[%emt 0:00:35]} 33. hxg5 {[%emt 0:00:05]} Nh7 {[%emt 0:00:05]} 34. Qe5 {[%emt 0:02:14]} Qc5 {[%emt 0:05:13]} 35. Kd2 {[%emt 0:00:55]} Nf8 {[%emt 0:01:42]} 36. Qe8 {[%emt 0:00:56]} Qd6 {[%emt 0:02:10]} 37. f4 {[%emt 0:00:48]} Qg6 {[%emt 0:01:36]} 38. Bc2 {[%emt 0:00:30]} Qh5 {[%emt 0:00:03]} 39. b3 {[%emt 0:01:09]} Qh2+ {[%emt 0:02:36]} 40. Kc1 {[%emt 0:00:06]} Qg1+ {[%emt 0:00:22]} 41. Kb2 {[%emt 0:00:12]} Qe1 {[%emt 0:00:06]} 42. bxc4 {[%emt 0:00:32]} Qc3+ {[%emt 0:00:34]} 43. Kc1 {[%emt 0:00:10]} Qe1+ {[%emt 0:00:03]} 44. Bd1 {[%emt 0:00:28]} dxc4 {[%emt 0:00:20]} 45. Nc2 {[%emt 0:01:25]} Qc3 {[%emt 0:00:20]} 46. Qd8 {[%emt 0:00:33]} b3 {[%emt 0:03:16]} 47. Qd4 {[%emt 0:00:03]} Qxd4 {[%emt 0:00:12]} 48. Nxd4 {[%emt 0:00:01]} a4 {[%emt 0:00:05]} 49. Be2 {[%emt 0:00:51]} *

[Event "UZB-ch Men Final 2019"]
[Site "Tashkent"]
[Date "2019.07.14"]
[Round "13.1"]
[White "Abdusattorov, Nodirbek"]
[Black "Yakubboev, Nodirbek"]
[Result "1/2-1/2"]
[ECO "C65"]
[WhiteElo "2598"]
[BlackElo "2575"]
[Annotator "ChessBase"]
[PlyCount "82"]
[EventDate "2019.07.02"]
[EventType "tourn"]
[EventCountry "UZB"]
[SourceTitle "playchess.com"]
[Source "ChessBase"]
[SourceQuality "1"]
[TimeControl "5400+30"]

1. e4 {[%emt 0:00:00]} e5 {[%emt 0:00:22]} 2. Nf3 {[%emt 0:00:30]} Nc6 {[%emt 0:00:15]} 3. Bb5 {[%emt 0:00:31]} Nf6 {[%emt 0:00:49]} 4. d3 {[%emt 0:03:12]} d6 {[%emt 0:07:52]} 5. O-O {[%emt 0:02:28]} Bd7 {[%emt 0:01:25]} 6. c4 {[%emt 0:02:52]} g6 {[%emt 0:01:18]} 7. Nc3 {[%emt 0:01:46]} Bg7 {[%emt 0:01:02]} 8. h3 {[%emt 0:00:42]} O-O {[%emt 0:01:14]} 9. Be3 {[%emt 0:01:03]} Nh5 {[%emt 0:14:26]} 10. Rc1 {[%emt 0:26:27]} Nf4 {[%emt 0:13:06]} 11. Bxc6 {[%emt 0:05:20]} bxc6 {[%emt 0:11:33]} 12. d4 {[%emt 0:04:02]} Ne6 {[%emt 0:05:13]} 13. d5 {[%emt 0:11:31]} Nf4 {[%emt 0:01:06]} 14. dxc6 {[%emt 0:00:34]} Bxc6 {[%emt 0:00:10]} 15. Bxf4 {[%emt 0:01:59]} exf4 {[%emt 0:00:09]} 16. Qd2 {[%emt 0:00:13]} Rb8 {[%emt 0:09:40]} 17. Rfe1 {[%emt 0:02:01]} Re8 {[%emt 0:00:11]} 18. b3 {[%emt 0:02:14]} Bxc3 {[%emt 0:01:26]} 19. Rxc3 {[%emt 0:01:14]} Qf6 {[%emt 0:00:09]} 20. Qd4 {[%emt 0:04:35]} Qxd4 {[%emt 0:02:43]} 21. Nxd4 {[%emt 0:00:05]} Rxe4 {[%emt 0:05:45]} 22. Rxe4 {[%emt 0:00:10]} Bxe4 {[%emt 0:00:02]} 23. Rc1 {[%emt 0:01:55]} a6 {[%emt 0:03:14]} 24. f3 {[%emt 0:00:50]} Bb7 {[%emt 0:05:37]} 25. c5 {[%emt 0:00:11]} Kg7 {[%emt 0:02:42]} 26. cxd6 {[%emt 0:03:12]} cxd6 {[%emt 0:00:01]} 27. Rc7 {[%emt 0:00:20]} Kf6 {[%emt 0:01:52]} 28. Kf2 {[%emt 0:00:59]} Ke5 {[%emt 0:01:15]} 29. Ne2 {[%emt 0:01:10]} Bd5 {[%emt 0:00:05]} 30. Ke1 {[%emt 0:03:58]} g5 {[%emt 0:01:14]} 31. Kd2 {[%emt 0:00:58]} h5 {[%emt 0:00:36]} 32. Nc3 {[%emt 0:01:24]} Be6 {[%emt 0:00:22]} 33. Rc6 {[%emt 0:00:24]} g4 {[%emt 0:01:18]} 34. hxg4 {[%emt 0:01:36]} hxg4 {[%emt 0:00:01]} 35. Rxa6 {[%emt 0:03:41]} Rh8 {[%emt 0:01:50]} 36. Ra4 {[%emt 0:00:59]} d5 {[%emt 0:00:57]} 37. Ne2 {[%emt 0:00:56]} Rh2 {[%emt 0:00:45]} 38. Ke1 {[%emt 0:00:59]} Rh1+ {[%emt 0:00:39]} 39. Kd2 {[%emt 0:00:12]} Rh2 {[%emt 0:00:19]} 40. Ke1 {[%emt 0:00:04]} Rh1+ {[%emt 0:04:50]} 41. Kd2 {[%emt 0:00:05]} Rh2 {[%emt 0:00:05]} 1/2-1/2

[Event "UZB-ch Men Final 2019"]
[Site "Tashkent"]
[Date "2019.07.14"]
[Round "13.2"]
[White "Sabirov, Asilbek"]
[Black "Nigmatov, Ortik"]
[Result "0-1"]
[ECO "A16"]
[WhiteElo "2147"]
[BlackElo "2488"]
[Annotator "ChessBase"]
[PlyCount "55"]
[EventDate "2019.07.02"]
[EventType "tourn"]
[EventCountry "UZB"]
[SourceTitle "playchess.com"]
[Source "ChessBase"]
[SourceQuality "1"]
[TimeControl "5400+30"]

1. c4 {[%emt 0:00:00]} Nf6 {[%emt 0:00:00]} 2. Nc3 {[%emt 0:00:00]} g6 {[%emt 0:00:03]} 3. g3 {[%emt 0:00:00]} Bg7 {[%emt 0:00:03]} 4. Bg2 {[%emt 0:00:00]} O-O {[%emt 0:00:05]} 5. Nf3 {[%emt 0:00:08]} d6 {[%emt 0:00:04]} 6. O-O {[%emt 0:00:07]} e5 {[%emt 0:00:07]} 7. d3 {[%emt 0:00:05]} Nc6 {[%emt 0:00:06]} 8. Rb1 {[%emt 0:00:08]} a5 {[%emt 0:00:04]} 9. a3 {[%emt 0:00:05]} h6 {[%emt 0:00:04]} 10. b4 {[%emt 0:02:58]} axb4 {[%emt 0:00:18]} 11. axb4 {[%emt 0:00:01]} Be6 {[%emt 0:00:05]} 12. b5 {[%emt 0:03:30]} Ne7 {[%emt 0:00:09]} 13. Bb2 {[%emt 0:01:39]} Qd7 {[%emt 0:00:06]} 14. Re1 {[%emt 0:01:43]} Bh3 {[%emt 0:00:08]} 15. Bh1 {[%emt 0:00:05]} Ng4 {[%emt 0:00:10]} 16. Nd2 {[%emt 0:01:49]} Rab8 {[%emt 0:00:14]} 17. Nd5 {[%emt 0:00:13]} f5 {[%emt 0:06:19]} 18. Nxe7+ {[%emt 0:08:03]} Qxe7 {[%emt 0:00:04]} 19. Bg2 {[%emt 0:05:08]} Bxg2 {[%emt 0:00:40]} 20. Kxg2 {[%emt 0:00:02]} f4 {[%emt 0:00:51]} 21. h3 {[%emt 0:01:33]} Nxf2 {[%emt 0:10:07]} 22. Kxf2 {[%emt 0:00:06]} fxg3+ {[%emt 0:00:03]} 23. Kg2 {[%emt 0:00:39]} Rf2+ {[%emt 0:01:30]} 24. Kxg3 {[%emt 0:00:28]} Rbf8 {[%emt 0:00:30]} 25. Nf3 {[%emt 0:01:39]} R8xf3+ {[%emt 0:00:54]} 26. exf3 {[%emt 0:00:26]} Qh4+ {[%emt 0:00:21]} 27. Kxh4 {[%emt 0:00:05]} Rg2 {[%emt 0:00:05]} 28. Bc1 0-1